Cogmind - Beta 13 @@@ ROGUE MODE // 2024.07.24 @ 13:52:13 Player: Venar246 Result: Self-destructed Performance ------------- Evolutions (1) 500 Regions Visited (2) 400 Robots Destroyed (19) 95 Value Destroyed (335) 335 Prototype IDs (0) 0 Alien Tech Used (0) 0 Bonus (0) 0 TOTAL SCORE: 1330 Bonus ------- None Cogmind --------- Core Integrity 260/400 Matter 300/300 Energy 160/160 System Corruption 0% Temperature Cool (0) Movement Walking (190) Ox1 Location -9/Materials Parts ------- > --- POWER (1) -------- Light Nuclear Core > --- PROPULSION (3) --- Aluminum Leg Aluminum Leg Improved Aluminum Leg > --- UTILITY (3) ------ High-capacity Storage Unit Visual Processing Unit > --- WEAPON (2) ------- Beam Rifle Rocket Launcher > --- INVENTORY (20) --- Ion Engine Aluminum Leg Improved Heat Sink Large Storage Unit High-capacity Storage Unit High-capacity Matter Pod (200) Weight Redist. System Structural Scanner Light Armor Plating Light Armor Plating Light Armor Plating Medium Armor Plating EM Pulse Gun Beam Rifle Light Assault Rifle Rocket Launcher Rocket Launcher Rocket Launcher Peak State ------------ > --- POWER ------------ Light Nuclear Core > --- PROPULSION ------- Aluminum Leg Aluminum Leg Aluminum Leg > --- UTILITY ---------- High-capacity Storage Unit Visual Processing Unit Light Armor Plating > --- WEAPON ----------- Beam Rifle Beam Rifle > --- INVENTORY -------- Ion Engine Aluminum Leg Improved Heat Sink Large Storage Unit High-capacity Storage Unit High-capacity Matter Pod Weight Redist. System Structural Scanner Light Armor Plating Light Armor Plating Light Armor Plating EM Pulse Gun Light Assault Rifle Rocket Launcher Rocket Launcher Rocket Launcher Rocket Launcher [Rating: 16] Favorites ----------- Power Ion Engine Engine Ion Engine Power Core Light Nuclear Core Propulsion Aluminum Leg Leg Aluminum Leg Utility High-capacity Storage Unit Storage High-capacity Storage Unit Processor Visual Processing Unit Protection Light Armor Plating Weapon Medium Laser Energy Gun Medium Laser Ballistic Gun Light Assault Rifle Launcher Rocket Launcher Build | -11 -10 -9 ------- Run | Yrd Mat Mat Slots Evolved 2 | . . 2 Power . | . . . Propulsion 1 | . . 1 Utility 1 | . . 1 Weapon . | . . . Parts Attached 18 | 6 7 5 Power 2 | 1 . 1 Engine 1 | 1 . . Core 1 | . . 1 Reactor . | . . . Propulsion 6 | 2 2 2 Treads . | . . . Leg 6 | 2 2 2 Wheel . | . . . Hover . | . . . Flight . | . . . Utility 5 | 1 3 1 Device . | . . . Storage 3 | 1 2 . Processor 1 | . . 1 Hackware . | . . . Protection 1 | . 1 . Artifact . | . . . Weapon 5 | 2 2 1 Energy Gun 3 | 1 2 . Energy Cannon . | . . . Ballistic Gun 1 | 1 . . Ballistic Cannon . | . . . Launcher 1 | . . 1 Special Weapon . | . . . Impact Weapon . | . . . Slashing Weapon . | . . . Piercing Weapon . | . . . Special Melee Weapon . | . . . Unidentified Prototypes . | . . . Parts Lost 2 | . . 2 Power . | . . . Propulsion 1 | . . 1 Utility 1 | . . 1 Weapon . | . . . Highest Loss Streak 2 | . . 2 To Critical Strikes . | . . . Average Slot Usage (%) 95 | . 95 95 Engine 10 | . 14 . Core 2 | . . 10 Leg 28 | . 28 31 Storage 13 | . 14 11 Processor 2 | . . 10 Protection 9 | . 10 8 Energy Gun 15 | . 14 18 Ballistic Gun 9 | . 13 . Naked Turns . | . . . Heaviest Build 55 | 13 54 55 Greatest Support 33 | 20 20 33 Greatest Overweight (x) 2 | . 2 2 Average Overweight (x) 1 | . 1 1 Largest Inventory Capacity 20 | 8 20 20 Average Capacity 17 | 6 17 20 Most Carried 20 | 4 20 20 Average Carried 12 | 1 11 18 Final Capacity 20 | 8 20 20 Final Carried 20 | 4 20 18 Class Distribution -------------------- 79% | Mutant 20% | Scavenger-Mutant Dominant Class ---------------- Mutant | -10/Materials Scavenger-Mutant | -9/Materials Resources | -11 -10 -9 ----------- Run | Yrd Mat Mat Matter Collected 620 | 174 376 70 Remotely . | . . . Salvage Created 529 | . 409 120 Parts 33 | . 23 10 Haulers Intercepted 2 | . 1 1 Recyclers Shooed 2 | . 1 1 Parts Field Recycled . | . . . Retrieved Matter . | . . . Parts Self-Destructed . | . . . Prevented . | . . . Kills | -11 -10 -9 ------- Run | Yrd Mat Mat Combat Hostiles Destroyed 14 | . 9 5 Guns 11 | . 9 2 AOE 3 | . . 3 Classes Destroyed 7 | . 5 2 Builder 1 | . . 1 Hauler 2 | . 1 1 Recycler 1 | . 1 . Watcher 1 | . 1 . Swarmer 9 | . 5 4 Grunt 4 | . 4 . Sentry 1 | . . 1 Best Kill Streak 6 | . 3 6 Combat Bots Only 4 | . 2 4 Max Kills in Single Turn 4 | . 1 4 Gunslinging . | . . . Exploded 3 | . . 3 Melee . | . . . Uniques/NPCs Destroyed . | . . . Combat | -11 -10 -9 -------- Run | Yrd Mat Mat Hostile Shots Fired 74 | . 33 41 Missed 17 | . 9 8 Damage Taken 694 | . 252 442 Core 201 | . 61 140 Absorbed by Shields . | . . . Core Remaining (%) 87 | 100 75 . Volleys Fired 59 | . 41 18 Largest 2 | . 2 2 Hottest 112 | . 112 112 Shots Fired 88 | . 65 23 Gun 85 | . 65 20 Cannon . | . . . Launcher 3 | . . 3 Special . | . . . Kinetic 39 | . 39 . Thermal 46 | . 26 20 Explosive 3 | . . 3 Electromagnetic . | . . . Robot Hit Streak 13 | . 13 6 Robot Miss Streak 7 | . 4 7 Penetration Max . | . . . Secondary Targets 1 | . 1 . Max Gunslinging Chain 1 | . 1 . Shots Hit Robots 54 | . 40 14 Core Hits 33 | . 24 9 Critical Kills 1 | . 1 . Critical Parts Destroyed . | . . . Critical Strikes 6 | . 4 2 Burn 5 | . 3 2 Destroy 1 | . 1 . Melee Attacks . | . . . Impact . | . . . Slashing . | . . . Piercing . | . . . Sneak Attacks . | . . . Combat Hostiles . | . . . Follow-up Attacks . | . . . Damage Inflicted 969 | . 439 530 Guns 639 | . 409 230 Cannons . | . . . Explosions 280 | . . 280 Melee . | . . . Ramming 50 | . 30 20 Kinetic 167 | . 167 . Thermal 472 | . 242 230 Explosive 280 | . . 280 Electromagnetic . | . . . Impact . | . . . Slashing . | . . . Piercing . | . . . Highest Corruption . | . . . Average Corruption . | . . . Corruption Purged . | . . . Corruption Blocked . | . . . Overload Shots . | . . . Overflow Damage 11 | . . 11 Projectiles . | . . . Explosions 11 | . . 11 Melee . | . . . Knockbacks 1 | . 1 . Impact 1 | . 1 . Kinetic . | . . . Secondary . | . . . Self-Inflicted Damage 109 | . . 109 Shots 2 | . . 2 Rammed . | . . . Targets Rammed 10 | . 6 4 Kicked 10 | . 6 4 Crushed . | . . . Highest Temperature 249 | . 216 249 Average Temperature 79 | . 67 97 Received Heat Transfer 108 | . 63 45 Siege Activations . | . . . Robots Corrupted . | . . . Combat Hostiles . | . . . Parts Fried . | . . . Impact Corruptions . | . . . Robots Melted . | . . . Combat Hostiles . | . . . Parts Melted 1 | . 1 . Heat Transferred 1665 | . 925 740 Parts Sabotaged . | . . . Parts Stolen . | . . . Parts Stripped . | . . . Power Chain Reactions . | . . . Alert | -11 -10 -9 ------- Run | Yrd Mat Mat Peak Influence 263 | . 183 263 Initial . | . . . Average 56 | . 55 67 Maximum Alert Level 1 | . . 1 Low Security (%) 95 | 100 100 84 Level 1 4 | . . 15 Level 2 . | . . . Level 3 . | . . . Level 4 . | . . . Level 5 . | . . . High Security . | . . . Max Security . | . . . Squads Dispatched 1 | . 1 . Investigation . | . . . Extermination . | . . . Reinforcement 1 | . 1 . Assault . | . . . Garrison . | . . . Intercept . | . . . Searches Triggered . | . . . Construction Impeded . | . . . Haulers Reinforced . | . . . Active Scanning Responses . | . . . Cargo Convoy Interrupts . | . . . Stealth | -11 -10 -9 --------- Run | Yrd Mat Mat Distress Signals 1 | . 1 . Communications Jammed . | . . . Distress Signals . | . . . Times Spotted 25 | . 16 9 Peak Tracking Total 5 | . 4 5 Tactical Retreats 1 | . 1 . Traps | -11 -10 -9 ------- Run | Yrd Mat Mat Traps Triggered 1 | . 1 . Indirectly . | . . . Trap Hack Attempts . | . . . Triggered . | . . . Disarmed . | . . . Reprogrammed . | . . . Reused . | . . . Traps Extracted . | . . . Installed . | . . . Triggered . | . . . Machines | -11 -10 -9 ---------- Run | Yrd Mat Mat Machines Disabled 2 | . . 2 Max in Single Turn 1 | . . 1 Machines Repaired . | . . . Machines Dismantled . | . . . Machines Sabotaged . | . . . Overloaded Fab Kills . | . . . Hacking | -11 -10 -9 --------- Run | Yrd Mat Mat Machines Accessed 4 | . 1 3 Terminals 4 | . 1 3 Fabricators . | . . . Repair Stations . | . . . Recycling Units . | . . . Scanalyzers . | . . . Garrison Access . | . . . Total Hacks 8 | . 2 6 Successful 2 | . 1 1 Failed 6 | . 1 5 Catastrophic . | . . . Database Lockouts . | . . . Manual 7 | . 1 6 Terminals 8 | . 2 6 Fabricators . | . . . Repair Stations . | . . . Recycling Units . | . . . Scanalyzers . | . . . Garrison Access . | . . . Terminal Hacks 2 | . 1 1 Hauler Manifests 2 | . 1 1 Fabricator Hacks . | . . . Repair Station Hacks . | . . . Recycling Unit Hacks . | . . . Scanalyzer . | . . . Garrison Access Hacks . | . . . Unauthorized Hacks . | . . . Terminals . | . . . Fabricators . | . . . Repair Stations . | . . . Recycling Units . | . . . Scanalyzers . | . . . Garrison Access . | . . . Data Cores Recovered . | . . . Used . | . . . Hacking Detections 3 | . . 3 Full Trace Events . | . . . Feedback Events . | . . . Feedback Blocked . | . . . Robot Schematics Acquired . | . . . Robots Built . | . . . Authchips . | . . . Time . | . . . Total Robot Build Rating . | . . . Part Schematics Acquired . | . . . Parts Built . | . . . Authchips . | . . . Time . | . . . Total Part Build Rating . | . . . Parts Repaired . | . . . Time . | . . . Parts Recycled . | . . . Recycled Matter . | . . . Retrieved Matter . | . . . Retrieved Components . | . . . Parts Scanalyzed . | . . . Part Schematics Acquired . | . . . Parts Damaged . | . . . Bothacking | -11 -10 -9 ------------ Run | Yrd Mat Mat Used RIF Installer . | . . . Robots Hacked . | . . . Non-combat . | . . . Combat . | . . . Robot Hacks Applied . | . . . Relay Couplers Released . | . . . Fabnet Peak Effective % . | . . . Robots Rewired . | . . . Allies Hacked . | . . . Hacks Repelled . | . . . Allies | -11 -10 -9 -------- Run | Yrd Mat Mat Total Allies . | . . . Largest Group . | . . . Highest-Rated Group . | . . . Highest-Rated Ally . | . . . Total Orders . | . . . Ally Attacks . | . . . Total Damage . | . . . Kills . | . . . Allies Corrupted . | . . . Allies Melted . | . . . Intel | -11 -10 -9 ------- Run | Yrd Mat Mat Robot Analysis Total . | . . . Derelict Logs Recovered . | . . . Drone Launches . | . . . Drone Recoveries . | . . . Exploration | -11 -10 -9 ------------- Run | Yrd Mat Mat Turns Passed 1808 | 77 1258 473 Spaces Moved 776 | 55 511 210 Core 2 | 2 . . Treads . | . . . Legs 774 | 53 511 210 Wheels . | . . . Hover . | . . . Flight . | . . . Fastest Speed 50 | 50 120 190 Average Speed 204 | 117 216 197 Slowest Speed 260 | 120 260 260 Overloaded Moves . | . . . Propulsion Burnouts . | . . . Robots Hopped . | . . . Cave-ins Triggered . | . . . Exploration Rate (%) 32 | 5 74 18 Regions Visited 2 Branch Regions . Pre-discovered Areas . | . . . Known Exits Taken . | . . . Unknown Exits Taken 2 | 1 1 . Scrap Searched . | . . . Spaces Dug . | . . . Terrain Destroyed 54 | . . 54 Melee . | . . . Projectile . | . . . AOE 54 | . . 54 Terrain Rammed . | . . . Walls Destroyed . | . . . Machines Disabled . | . . . Actions | -11 -10 -9 --------- Run | Yrd Mat Mat Total 907 | 64 602 241 Wait 4 | . 4 . Move 774 | 54 510 210 Hop . | . . . Pick Up 28 | 4 22 2 Fast Attach 11 | 6 4 1 Attach 3 | . . 3 Detach . | . . . Swap 4 | . 3 1 Drop 14 | . 12 2 Fire 59 | . 41 18 Melee . | . . . Ram . | . . . Kick 10 | . 6 4 Crush . | . . . Escape Stasis . | . . . Rewire . | . . . Trap . | . . . Miscellaneous . | . . . Route ------- -11/Scrapyard -10/Materials (discovered 4 exits: *Mat x3 / [*Min]) -9/Materials History --------- Turn | Location | Event 6 | -11/Scrapyard | Discovered new exit (range 16) 78 | -11/Scrapyard | Entered Materials 266 | -10/Materials | Discovered new exit (range 8) 318 | -10/Materials | Build established: Mutant 630 | -10/Materials | Discovered new exit (range 12) 787 | -10/Materials | Discovered new exit (range 3) 824 | -10/Materials | Discovered new exit (range 12) 1336 | -10/Materials | Entered another Materials area 1336 | -9/Materials | Evolved 2 slots: Propulsion x1, Utility x1 1674 | -9/Materials | Build established: Scavenger-Mutant 1809 | -9/Materials | Self-destructed Last Messages --------------- 01675_ R-06 Scavenger collects Ion Engine. 01677_ R-06 Scavenger collects Structural Scanner. 01678_ R-06 Scavenger collects Rocket Launcher. 01681_ R-06 Scavenger collects Terrain Scanner. 01682_ R-06 Scavenger collects Lgt. Assault Rifle. 01685_ R-06 Scavenger collects Welding Torch. 01692_ R-06 Scavenger collects Cooling System. 01707_ Lgt. Armor Plating destroyed. 01708_ Y-45 Defender suffers critical hit (Burn). 01735_ Aluminum Leg destroyed. 01737_ Y-45 Defender destroyed. 01744_ Acquired 5 matter. 01768_ Acquired Imp. Aluminum Leg. 01774_ K-01 Serf collects debris. 01779_ Kicked K-01 Serf. 01786_ Acquired 7 matter. 01795_ K-01 Serf collects debris. Map ----- +----------------------------------------------------+ | ?????????????????????????????????????????????? | | ?????????????????????????????????????????????? | | ???######???###########??????????????????????? | | ??? ???# """ #??????????????????????? | | ???? ???# """"" #??????????????????????? | | ????? ##?# """"" #??????????????????????? | | #???## #?# """"" #????########??????????? | | ??# #?# """ #????# #??????????? | | ?# #?# ###### #??????????? | | # ?+ ## # #??????????? | | #?# + + #??????????? | | ######+####### # #??????????? | | ]!! ###### ## #??????????? | | # ] #"""?#[#########??????????? | | = #"T"##m#??????????????????? | | # % =#?????###??????????? | | ###+##""# " #????"" ""?????????? | | ??# #" #" t ###?""" ""?????????? | | ??# #" " """ """ # """ ???????????? | | ??# #" ""= """ """ # ?????????????? | | ??# #" "" """ """ + ???????????????? | | ??# #" "" #????????????????? | | ### %+ "" [ #????????????????? | | ## #"""""""#"######### #????????????????? | | ## ###"""""## ???????# #????????????????? | | # + % # ??????# @ #????????????????? | | # # ! # ??????+ Y ???????????? | | + + # "?????# ### ##??????????? | | # # #! ?????# #???###???????????? | | ## ##########??"?????# #?????????????????? | | # #??????????"?????+ ?????????????????? | | # #????????????????#####?????????????????? | | # T #??????????????????????????????????????? | | # #??????????????????????????????????????? | | # #??????????????????????????????????????? | | ### ###??????????????????????????????????????? | | ??# #?????????????????##########?????????????? | | ??# #?????????????????# #?????????????? | | ??# #???#######???????# """ #?????????????? | | ??# #???# #???????# """ #?????????????? | | ??# ##### ######### """ #?????????????? | | ??# T %% * + ! #?????????????? | | ??# ##### ### ##### """ #?????????????? | | ??# #???# #?# #???# """ #?????????????? | | ?? #???######### #???# """ #?????????????? | | ?## ????# # #???# #?????????????? | | ??# ????# # #########+######???????????? | | ??# ????# """ + #???????????? | | ??###????# """ # #???????????? | | ?????????#% """ # #???????????? | +----------------------------------------------------+ Best States ------------- Heat Dissipation 28 Energy Generation 14 Energy Capacity 250 Matter Stores 300 Matter Capacity 300 Sight Range 18 Terrain Scan Density 10 Armor Coverage 150 Evasion (%) 55 Item Schematics ----------------- None Robot Schematics ------------------ None Fabricated ------------ Nothing Alien Tech Used ----------------- None Achievements -------------- None Challenges ------------ None Game ------ Seed TerrabombGatlingLink Manual? 0 Play Time 00:08:36 Cumulative 28.3 hours Start 2024.07.23 @ 18:37:38 End 2024.07.24 @ 13:52:13 Sessions 5 Manual Loads 0 Difficulty Rogue Special Mode None Game No. 54 Rogue 54 Adventurer 0 Explorer 0 Win Type - Total 1 Types 1/0/0/0/0/0/0/0/0 Lore% 26 Gallery% 34 Achievement% 28 Wizard Run 0 Options --------- Layout 1 ASCII 0 Keyboard 0 Movement Arrows Keybinds 0 Fullscreen 1 Font 32/SmallcapsGlow Map View 50x35 Zoom Use 0% Tactical HUD 1 Map Filters NONE Filters NONE Steam 1 RUN: c219e58f-305d-4630-abe7-24218177e79b